Body Name,Body,Service Division,Expense Type,Date Paid,Transaction Ref,Invoice Amount,Supplier Name
Boston Borough Council,http://statistics.data.gov.uk/id/local-authority/32UB,Information Technology,Telephone and Mobiles,02/01/2024,30009529,"3,653.29 ",Vodafone
Boston Borough Council,http://statistics.data.gov.uk/id/local-authority/32UB,Operations,Fuel and Oil,02/01/2024,30009816,527.63 ,Fuelcard Services Ltd
Boston Borough Council,http://statistics.data.gov.uk/id/local-authority/32UB,Operations,Fuel and Oil,02/01/2024,30009818,324.83 ,Fuelcard Services Ltd
Boston Borough Council,http://statistics.data.gov.uk/id/local-authority/32UB,Operations,Fuel and Oil,02/01/2024,30009824,"6,004.18 ",Fuelcard Services Ltd
Boston Borough Council,http://statistics.data.gov.uk/id/local-authority/32UB,Planning,Professional and Contractors Fees,02/01/2024,30009590,"9,043.49 ",Thomson Environmental Consultants Ltd
Boston Borough Council,http://statistics.data.gov.uk/id/local-authority/32UB,Planning,Subscriptions to Organisations and Other Bodies,02/01/2024,30009626,"3,300.00 ",Thomson Reuters
Boston Borough Council,http://statistics.data.gov.uk/id/local-authority/32UB,Bereavement,Fees and Charges General,04/01/2024,30009681,"1,050.56 ",�Personal Information Redacted�
Boston Borough Council,http://statistics.data.gov.uk/id/local-authority/32UB,Business Transformation,Postages,04/01/2024,30009641,465.34 ,Royal Mail
Boston Borough Council,http://statistics.data.gov.uk/id/local-authority/32UB,Communities,Bed and Breakfast Accommodation (Homelessness Service),04/01/2024,30009640,315.00 ,Smart Move (Boston) LTD
Boston Borough Council,http://statistics.data.gov.uk/id/local-authority/32UB,Information Technology,Telephone and Mobiles,04/01/2024,30009809,652.93 ,British Telecommunications Plc
Boston Borough Council,http://statistics.data.gov.uk/id/local-authority/32UB,Leisure,Gas,04/01/2024,30009181,"2,280.00 ",SDL Biomass LTD
Boston Borough Council,http://statistics.data.gov.uk/id/local-authority/32UB,Operations,Agency Staff,04/01/2024,30009475,"5,826.57 ",Comensura LTD
Boston Borough Council,http://statistics.data.gov.uk/id/local-authority/32UB,Operations,Agency Staff,04/01/2024,30009607,"6,822.14 ",Comensura LTD
Boston Borough Council,http://statistics.data.gov.uk/id/local-authority/32UB,Operations,Maintenance,04/01/2024,30009007,291.68 ,Specialist Fleet Services LTD
Boston Borough Council,http://statistics.data.gov.uk/id/local-authority/32UB,Operations,Maintenance,04/01/2024,30009009,646.09 ,Specialist Fleet Services LTD
Boston Borough Council,http://statistics.data.gov.uk/id/local-authority/32UB,Operations,Maintenance,04/01/2024,30009013,327.75 ,Specialist Fleet Services LTD
Boston Borough Council,http://statistics.data.gov.uk/id/local-authority/32UB,Operations,Maintenance,04/01/2024,30009121,223.52 ,Specialist Fleet Services LTD
Boston Borough Council,http://statistics.data.gov.uk/id/local-authority/32UB,Operations,Maintenance,04/01/2024,30009123,463.04 ,Specialist Fleet Services LTD
Boston Borough Council,http://statistics.data.gov.uk/id/local-authority/32UB,Operations,Maintenance,04/01/2024,30009125,500.00 ,Specialist Fleet Services LTD
Boston Borough Council,http://statistics.data.gov.uk/id/local-authority/32UB,Operations,Maintenance,04/01/2024,30009276,"25,928.93 ",Specialist Fleet Services LTD
Boston Borough Council,http://statistics.data.gov.uk/id/local-authority/32UB,Operations,Maintenance,04/01/2024,30009305,442.75 ,Specialist Fleet Services LTD
Boston Borough Council,http://statistics.data.gov.uk/id/local-authority/32UB,Operations,Maintenance,04/01/2024,30009467,"6,920.00 ",Peter Smith Commercials LTD
Boston Borough Council,http://statistics.data.gov.uk/id/local-authority/32UB,Property Services,Buildings Maintenance - Programmed,04/01/2024,30009558,"1,941.63 ",Glen Farrow UK LTD
Boston Borough Council,http://statistics.data.gov.uk/id/local-authority/32UB,Property Services,Buildings Maintenance - Programmed,04/01/2024,30009568,720.60 ,Power Portal Limited
Boston Borough Council,http://statistics.data.gov.uk/id/local-authority/32UB,Property Services,Buildings Maintenance - Programmed,04/01/2024,30009571,313.54 ,Glen Farrow UK LTD
Boston Borough Council,http://statistics.data.gov.uk/id/local-authority/32UB,Property Services,Buildings Maintenance - Programmed,04/01/2024,30009572,"1,780.00 ",Glen Farrow UK LTD
Boston Borough Council,http://statistics.data.gov.uk/id/local-authority/32UB,Property Services,Gas,04/01/2024,30009106,"2,510.00 ",SDL Biomass LTD
Boston Borough Council,http://statistics.data.gov.uk/id/local-authority/32UB,Strategic Economic Development Projects,Professional and Contractors Fees,04/01/2024,30009678,"2,610.00 ",Park Avenue Recruitment
Boston Borough Council,http://statistics.data.gov.uk/id/local-authority/32UB,Strategic Economic Development Projects,Professional and Contractors Fees,04/01/2024,30009679,"2,218.50 ",Park Avenue Recruitment
Boston Borough Council,http://statistics.data.gov.uk/id/local-authority/32UB,Strategic Growth & Development,Grants and Contributions to Outside Bodies - No Service Received,04/01/2024,30009448,"3,889.45 ",The Lincs Group Ltd
Boston Borough Council,http://statistics.data.gov.uk/id/local-authority/32UB,Operations,Fuel and Oil,08/01/2024,30009910,567.30 ,Fuelcard Services Ltd
Boston Borough Council,http://statistics.data.gov.uk/id/local-authority/32UB,Operations,Fuel and Oil,08/01/2024,30009911,"3,661.67 ",Fuelcard Services Ltd
Boston Borough Council,http://statistics.data.gov.uk/id/local-authority/32UB,Bereavement,Internet Broadband Payments,09/01/2024,30009195,52.43 ,Multidata LTD
Boston Borough Council,http://statistics.data.gov.uk/id/local-authority/32UB,Bereavement,Professional and Contractors Fees,09/01/2024,30009802,"1,128.50 ",�Personal Information Redacted�
Boston Borough Council,http://statistics.data.gov.uk/id/local-authority/32UB,Communities,External Printing and Design Costs,09/01/2024,30009673,449.00 ,Chris Cook Print And office Supplies
Boston Borough Council,http://statistics.data.gov.uk/id/local-authority/32UB,Communities,Grants and Contributions to Outside Bodies - No Service Received,09/01/2024,30009792,820.65 ,Dave Howard Building and Joinery Service
Boston Borough Council,http://statistics.data.gov.uk/id/local-authority/32UB,Communities,Other Miscellaneous Expenses,09/01/2024,30009676,240.00 ,SG Services (Boston) LTD
Boston Borough Council,http://statistics.data.gov.uk/id/local-authority/32UB,Communities,Other Miscellaneous Expenses,09/01/2024,30009785,447.14 ,AA Properties Boston LTD T/A Tunnard House
Boston Borough Council,http://statistics.data.gov.uk/id/local-authority/32UB,Economic Development,Professional Fees,09/01/2024,30009375,"251,559.73 ",University of Lincoln
Boston Borough Council,http://statistics.data.gov.uk/id/local-authority/32UB,Economic Development,Professional Fees,09/01/2024,30009767,"6,767.28 ",East Midlands Railway EMR
Boston Borough Council,http://statistics.data.gov.uk/id/local-authority/32UB,Environmental Health,Professional and Contractors Fees,09/01/2024,30009677,"1,120.83 ",Pestinator UK LTD
Boston Borough Council,http://statistics.data.gov.uk/id/local-authority/32UB,Heritage,Internet Broadband Payments,09/01/2024,30009195,60.50 ,Multidata LTD
Boston Borough Council,http://statistics.data.gov.uk/id/local-authority/32UB,Land Charges & Licencing,Professional and Contractors Fees,09/01/2024,30009632,"1,544.99 ",Lincolnshire County Council
Boston Borough Council,http://statistics.data.gov.uk/id/local-authority/32UB,Leisure,Internet Broadband Payments,09/01/2024,30009195,368.00 ,Multidata LTD
Boston Borough Council,http://statistics.data.gov.uk/id/local-authority/32UB,Operations,Internet Broadband Payments,09/01/2024,30009195,51.76 ,Multidata LTD
Boston Borough Council,http://statistics.data.gov.uk/id/local-authority/32UB,Operations,Other Private Contractors,09/01/2024,30009709,220.00 ,SG Services (Boston) LTD
Boston Borough Council,http://statistics.data.gov.uk/id/local-authority/32UB,Planning,Planning Application Fees,09/01/2024,30009770,462.00 ,�Personal Information Redacted�
Boston Borough Council,http://statistics.data.gov.uk/id/local-authority/32UB,Property Services,Buildings Maintenance - Programmed,09/01/2024,30009545,"1,869.53 ",Pumping Solutions
Boston Borough Council,http://statistics.data.gov.uk/id/local-authority/32UB,Property Services,Buildings Maintenance - Programmed,09/01/2024,30009627,217.35 ,Healthguard LTD
Boston Borough Council,http://statistics.data.gov.uk/id/local-authority/32UB,Property Services,Buildings Maintenance - Programmed,09/01/2024,30009642,549.00 ,Wave
Boston Borough Council,http://statistics.data.gov.uk/id/local-authority/32UB,Strategic Economic Development Projects,Professional and Contractors Fees,09/01/2024,30009784,"2,088.00 ",Park Avenue Recruitment
Boston Borough Council,http://statistics.data.gov.uk/id/local-authority/32UB,Finance,EBSS AF Scheme Income,10/01/2024,30009908,"41,400.00 ",Department for Energy Security and Net Zero
Boston Borough Council,http://statistics.data.gov.uk/id/local-authority/32UB,Finance,EBSS AF Scheme Income,10/01/2024,30009909,"198,720.00 ",Department for Energy Security and Net Zero
Boston Borough Council,http://statistics.data.gov.uk/id/local-authority/32UB,Communities,Bed and Breakfast Accommodation (Homelessness Service),11/01/2024,30009814,315.00 ,Smart Move (Boston) LTD
Boston Borough Council,http://statistics.data.gov.uk/id/local-authority/32UB,Communities,Grants and Contributions to Outside Bodies - No Service Received,11/01/2024,30009798,"1,891.42 ",Dolphin Mobility East Midlands LTD
Boston Borough Council,http://statistics.data.gov.uk/id/local-authority/32UB,Leisure,Professional and Contractors Fees,11/01/2024,30009543,"1,575.00 ",YMD Boon LTD
Boston Borough Council,http://statistics.data.gov.uk/id/local-authority/32UB,Property Services,Buildings Maintenance - Programmed,11/01/2024,30009541,315.00 ,IS Consultancy (UK) LTD T/A Is Group
Boston Borough Council,http://statistics.data.gov.uk/id/local-authority/32UB,Property Services,Buildings Maintenance - Programmed,11/01/2024,30009544,"1,054.00 ",Adcock Refrigeration and Air Conditioning LTD
Boston Borough Council,http://statistics.data.gov.uk/id/local-authority/32UB,Property Services,Buildings Maintenance - Programmed,11/01/2024,30009546,"2,231.25 ",Calbarrie
Boston Borough Council,http://statistics.data.gov.uk/id/local-authority/32UB,Property Services,Buildings Maintenance - Programmed,11/01/2024,30009548,300.00 ,Calbarrie
Boston Borough Council,http://statistics.data.gov.uk/id/local-authority/32UB,Strategic Growth & Development,Grants and Contributions to Outside Bodies - No Service Received,11/01/2024,30009786,"7,929.40 ",Boston Lithuanian Community
Boston Borough Council,http://statistics.data.gov.uk/id/local-authority/32UB,Bereavement,Gas,12/01/2024,30009974,"1,241.37 ",Espo Gas and Electricity
Boston Borough Council,http://statistics.data.gov.uk/id/local-authority/32UB,Bereavement,Gas,12/01/2024,30009975,"5,022.03 ",Espo Gas and Electricity
Boston Borough Council,http://statistics.data.gov.uk/id/local-authority/32UB,Communities,Gas,12/01/2024,30009969,435.84 ,Espo Gas and Electricity
Boston Borough Council,http://statistics.data.gov.uk/id/local-authority/32UB,Communities,Gas,12/01/2024,30009972,328.60 ,Espo Gas and Electricity
Boston Borough Council,http://statistics.data.gov.uk/id/local-authority/32UB,Heritage,Gas,12/01/2024,30009970,"2,721.99 ",Espo Gas and Electricity
Boston Borough Council,http://statistics.data.gov.uk/id/local-authority/32UB,Leisure,Gas,12/01/2024,30009973,"8,161.65 ",Espo Gas and Electricity
Boston Borough Council,http://statistics.data.gov.uk/id/local-authority/32UB,Property Services,Gas,12/01/2024,30009971,"3,246.28 ",Espo Gas and Electricity
Boston Borough Council,http://statistics.data.gov.uk/id/local-authority/32UB,Finance,Electricity,15/01/2024,30010026,"64,052.69 ",TotalEnergies
Boston Borough Council,http://statistics.data.gov.uk/id/local-authority/32UB,Operations,Fuel and Oil,15/01/2024,30010021,"4,413.24 ",Fuelcard Services Ltd
Boston Borough Council,http://statistics.data.gov.uk/id/local-authority/32UB,Communities,Grants and Contributions to Outside Bodies - No Service Received,16/01/2024,30009800,"32,500.00 ",Citizens Advice Mid Lincolnshire
Boston Borough Council,http://statistics.data.gov.uk/id/local-authority/32UB,Communities,Grants and Contributions to Outside Bodies - No Service Received,16/01/2024,30009843,650.46 ,Ark Property Centre
Boston Borough Council,http://statistics.data.gov.uk/id/local-authority/32UB,Communities,Grants and Contributions to Outside Bodies - No Service Received,16/01/2024,30009844,575.41 ,Ark Property Centre
Boston Borough Council,http://statistics.data.gov.uk/id/local-authority/32UB,Communities,Grants and Contributions to Outside Bodies - No Service Received,16/01/2024,30009847,829.90 ,Lincolnshire Housing Partnership
Boston Borough Council,http://statistics.data.gov.uk/id/local-authority/32UB,Council Tax & Benefits,Other Revenue Grants Reimbursements and Contributions (Government),16/01/2024,30009893,"15,600.00 ",Public Sector Partnership Services LTD
Boston Borough Council,http://statistics.data.gov.uk/id/local-authority/32UB,Environmental Health,Furniture and Equipment,16/01/2024,30009864,824.40 ,Gradko International LTD
Boston Borough Council,http://statistics.data.gov.uk/id/local-authority/32UB,Environmental Health,Other Miscellaneous Expenses,16/01/2024,30009675,250.00 ,Landmark Information Group LTD
Boston Borough Council,http://statistics.data.gov.uk/id/local-authority/32UB,Human Resources,Staff Training Expenses (Non-Payroll),16/01/2024,30009791,"3,103.68 ",Public Sector Partnership Services LTD
Boston Borough Council,http://statistics.data.gov.uk/id/local-authority/32UB,Operations,Maintenance,16/01/2024,30009000,899.41 ,Specialist Fleet Services LTD
Boston Borough Council,http://statistics.data.gov.uk/id/local-authority/32UB,Operations,Other Private Contractors,16/01/2024,30009828,270.00 ,SG Services (Boston) LTD
Boston Borough Council,http://statistics.data.gov.uk/id/local-authority/32UB,Operations,Other Private Contractors,16/01/2024,30009830,320.00 ,SG Services (Boston) LTD
Boston Borough Council,http://statistics.data.gov.uk/id/local-authority/32UB,Property Services,Buildings Maintenance - Programmed,16/01/2024,30009563,568.75 ,Calbarrie
Boston Borough Council,http://statistics.data.gov.uk/id/local-authority/32UB,Property Services,Buildings Maintenance - Programmed,16/01/2024,30009566,787.50 ,Calbarrie
Boston Borough Council,http://statistics.data.gov.uk/id/local-authority/32UB,Property Services,Buildings Maintenance - Programmed,16/01/2024,30009588,698.20 ,Calbarrie
Boston Borough Council,http://statistics.data.gov.uk/id/local-authority/32UB,Property Services,Buildings Maintenance - Programmed,16/01/2024,30009644,218.00 ,ADT Fire And Security PLC
Boston Borough Council,http://statistics.data.gov.uk/id/local-authority/32UB,Property Services,Materials and Consumables,16/01/2024,30009600,410.00 ,IPS (UK) Ltd
Boston Borough Council,http://statistics.data.gov.uk/id/local-authority/32UB,Property Services,Materials and Consumables,16/01/2024,30009788,"1,190.00 ",Paperwork (UK) LTD
Boston Borough Council,http://statistics.data.gov.uk/id/local-authority/32UB,Strategic Economic Development Projects,Professional and Contractors Fees,16/01/2024,30009320,"2,523.00 ",Asbestos Compliance Management Services Limited (ACMS)
Boston Borough Council,http://statistics.data.gov.uk/id/local-authority/32UB,Strategic Economic Development Projects,Professional and Contractors Fees,16/01/2024,30009865,550.00 ,The Engaging People Company
Boston Borough Council,http://statistics.data.gov.uk/id/local-authority/32UB,Strategic Growth & Development,Grants and Contributions to Outside Bodies - No Service Received,16/01/2024,30009262,"15,168.00 ",University of Lincoln
Boston Borough Council,http://statistics.data.gov.uk/id/local-authority/32UB,Strategic Growth & Development,Grants and Contributions to Outside Bodies - No Service Received,16/01/2024,30009768,"25,000.00 ",The Private Dental Centre Ltd
Boston Borough Council,http://statistics.data.gov.uk/id/local-authority/32UB,Land Charges & Licencing,Other Miscellaneous Expenses,17/01/2024,30010032,798.00 ,Disclosure and Barring Service
Boston Borough Council,http://statistics.data.gov.uk/id/local-authority/32UB,Business Transformation,Postages,18/01/2024,30009805,471.28 ,Royal Mail
Boston Borough Council,http://statistics.data.gov.uk/id/local-authority/32UB,Communities,Bed and Breakfast Accommodation (Homelessness Service),18/01/2024,30009952,840.00 ,The Lord Grey Hotel t/a The Lord Grey Ltd
Boston Borough Council,http://statistics.data.gov.uk/id/local-authority/32UB,Communities,Bed and Breakfast Accommodation (Homelessness Service),18/01/2024,30009953,385.00 ,The Lord Grey Hotel t/a The Lord Grey Ltd
Boston Borough Council,http://statistics.data.gov.uk/id/local-authority/32UB,Communities,Bed and Breakfast Accommodation (Homelessness Service),18/01/2024,30009954,700.00 ,Smart Move (Boston) LTD
Boston Borough Council,http://statistics.data.gov.uk/id/local-authority/32UB,Communities,Bed and Breakfast Accommodation (Homelessness Service),18/01/2024,30009956,225.00 ,Twenty Hotel And Bar (Boston) LTD
Boston Borough Council,http://statistics.data.gov.uk/id/local-authority/32UB,Communities,Grants and Contributions to Outside Bodies - No Service Received,18/01/2024,30009895,"4,527.41 ",R A Joinery
Boston Borough Council,http://statistics.data.gov.uk/id/local-authority/32UB,Communities,Grants and Contributions to Outside Bodies - No Service Received,18/01/2024,30009944,"5,132.00 ",Dolphin Mobility East Midlands LTD
Boston Borough Council,http://statistics.data.gov.uk/id/local-authority/32UB,Communities,Grants and Contributions to Outside Bodies - No Service Received,18/01/2024,30009962,"7,191.24 ",R A Joinery
Boston Borough Council,http://statistics.data.gov.uk/id/local-authority/32UB,Economic Development,Professional and Contractors Fees,18/01/2024,30009857,"3,793.66 ",AA Properties Boston LTD T/A Tunnard House
Boston Borough Council,http://statistics.data.gov.uk/id/local-authority/32UB,Information Technology,Telephone and Mobiles,18/01/2024,30009890,"3,701.25 ",Public Sector Partnership Services LTD
Boston Borough Council,http://statistics.data.gov.uk/id/local-authority/32UB,Leisure,Grants and Contributions - Where a Service is Received,18/01/2024,30009849,"6,000.00 ",Lincolnshire Sports Partnership LTD
Boston Borough Council,http://statistics.data.gov.uk/id/local-authority/32UB,Operations,Clothing Uniforms And Laundry,18/01/2024,30009508,992.10 ,SMI Group
Boston Borough Council,http://statistics.data.gov.uk/id/local-authority/32UB,Operations,Materials and Consumables,18/01/2024,30009948,"7,950.00 ",The Boston Sign Company
Boston Borough Council,http://statistics.data.gov.uk/id/local-authority/32UB,Operations,Other Private Contractors,18/01/2024,30009916,220.00 ,SG Services (Boston) LTD
Boston Borough Council,http://statistics.data.gov.uk/id/local-authority/32UB,Operations,Tyres,18/01/2024,30009870,"2,856.07 ",BA Bush and Son LTD
Boston Borough Council,http://statistics.data.gov.uk/id/local-authority/32UB,Property Services,Buildings Maintenance - Programmed,18/01/2024,30009894,"1,010.10 ",CSS Pools And Leisure LTD
Boston Borough Council,http://statistics.data.gov.uk/id/local-authority/32UB,Strategic Economic Development Projects,Professional Fees,18/01/2024,30009958,"1,044.00 ",Park Avenue Recruitment
Boston Borough Council,http://statistics.data.gov.uk/id/local-authority/32UB,Grant Payments,Business Rates Tariff,22/01/2024,30010246,"419,744.00 ",Lincolnshire County Council
Boston Borough Council,http://statistics.data.gov.uk/id/local-authority/32UB,Grant Payments,Non-Ringfenced Government Grants - S31 Grant,22/01/2024,30010245,"1,105,590.00 ",Department for levelling Up Housing & Communities
Boston Borough Council,http://statistics.data.gov.uk/id/local-authority/32UB,Operations,Fuel and Oil,22/01/2024,30010249,743.50 ,Fuelcard Services Ltd
Boston Borough Council,http://statistics.data.gov.uk/id/local-authority/32UB,Operations,Fuel and Oil,22/01/2024,30010250,"5,442.12 ",Fuelcard Services Ltd
Boston Borough Council,http://statistics.data.gov.uk/id/local-authority/32UB,Bereavement,Purchase Of Goods For Resale,23/01/2024,30009633,310.00 ,The Yaboo Co LTD (Wesley Media)
Boston Borough Council,http://statistics.data.gov.uk/id/local-authority/32UB,Bereavement,Purchase Of Goods For Resale,23/01/2024,30009636,400.00 ,The Yaboo Co LTD (Wesley Media)
Boston Borough Council,http://statistics.data.gov.uk/id/local-authority/32UB,Bereavement,Purchase Of Goods For Resale,23/01/2024,30009981,230.00 ,William Kent (Memorials) LTD
Boston Borough Council,http://statistics.data.gov.uk/id/local-authority/32UB,Communities,Bed and Breakfast Accommodation (Homelessness Service),23/01/2024,30010013,315.00 ,Dellhaven Homes Limited
Boston Borough Council,http://statistics.data.gov.uk/id/local-authority/32UB,Communities,Bed and Breakfast Accommodation (Homelessness Service),23/01/2024,30010016,315.00 ,Dellhaven Homes Limited
Boston Borough Council,http://statistics.data.gov.uk/id/local-authority/32UB,Communities,Bed and Breakfast Accommodation (Homelessness Service),23/01/2024,30010050,630.00 ,Fairfield Guest House
Boston Borough Council,http://statistics.data.gov.uk/id/local-authority/32UB,Communities,Bed and Breakfast Accommodation (Homelessness Service),23/01/2024,30010051,630.00 ,Fairfield Guest House
Boston Borough Council,http://statistics.data.gov.uk/id/local-authority/32UB,Communities,Bed and Breakfast Accommodation (Homelessness Service),23/01/2024,30010052,"1,530.00 ",Fairfield Guest House
Boston Borough Council,http://statistics.data.gov.uk/id/local-authority/32UB,Communities,Furniture and Equipment,23/01/2024,30009638,"10,400.00 ",BT Redcare
Boston Borough Council,http://statistics.data.gov.uk/id/local-authority/32UB,Communities,Grants and Contributions to Outside Bodies - No Service Received,23/01/2024,30009943,"5,000.00 ",The Parish of Boston
Boston Borough Council,http://statistics.data.gov.uk/id/local-authority/32UB,Communities,Grants and Contributions to Outside Bodies - No Service Received,23/01/2024,30009988,"5,000.00 ",Lincolnshire Community Foundation
Boston Borough Council,http://statistics.data.gov.uk/id/local-authority/32UB,Communities,Grants and Contributions to Outside Bodies - No Service Received,23/01/2024,30010020,"10,000.00 ",Charis Grants LTD
Boston Borough Council,http://statistics.data.gov.uk/id/local-authority/32UB,Communities,Other Miscellaneous Expenses,23/01/2024,30009687,531.32 ,thebigword
Boston Borough Council,http://statistics.data.gov.uk/id/local-authority/32UB,Communities,Professional Fees,23/01/2024,30009868,"1,635.00 ",Focus Consultants 2010 LLP
Boston Borough Council,http://statistics.data.gov.uk/id/local-authority/32UB,Corporate,Purchase of Hardware,23/01/2024,30009907,"5,733.18 ",Public Sector Partnership Services LTD
Boston Borough Council,http://statistics.data.gov.uk/id/local-authority/32UB,Corporate,Purchase of Hardware,23/01/2024,30009961,"6,158.40 ",Public Sector Partnership Services LTD
Boston Borough Council,http://statistics.data.gov.uk/id/local-authority/32UB,"Democratic, Civic & Electoral Services",External Printing and Design Costs,23/01/2024,30009624,972.09 ,Civica Election Services LTD
Boston Borough Council,http://statistics.data.gov.uk/id/local-authority/32UB,"Democratic, Civic & Electoral Services",Other Miscellaneous Expenses,23/01/2024,30009462,338.00 ,Dave Skells TM Ltd
Boston Borough Council,http://statistics.data.gov.uk/id/local-authority/32UB,Economic Development,Professional and Contractors Fees,23/01/2024,30010019,"3,850.00 ",Destination Lincolnshire Community Interest Company
Boston Borough Council,http://statistics.data.gov.uk/id/local-authority/32UB,Environmental Health,Other Private Contractors,23/01/2024,30010002,"2,103.60 ",Rookery Kennels
Boston Borough Council,http://statistics.data.gov.uk/id/local-authority/32UB,Environmental Health,Other Private Contractors,23/01/2024,30010054,237.50 ,A17 Kennels
Boston Borough Council,http://statistics.data.gov.uk/id/local-authority/32UB,Finance,Banking Charges,23/01/2024,30008110,4.04 ,Pay360 LTD
Boston Borough Council,http://statistics.data.gov.uk/id/local-authority/32UB,Finance,Banking Charges,23/01/2024,30008111,4.04 ,Pay360 LTD
Boston Borough Council,http://statistics.data.gov.uk/id/local-authority/32UB,Finance,BBC General Account,23/01/2024,30008110,999.99 ,Pay360 LTD
Boston Borough Council,http://statistics.data.gov.uk/id/local-authority/32UB,Finance,BBC General Account,23/01/2024,30008111,999.99 ,Pay360 LTD
Boston Borough Council,http://statistics.data.gov.uk/id/local-authority/32UB,Finance,Public Sector Partnership Services,23/01/2024,30009629,"247,830.00 ",Public Sector Partnership Services LTD
Boston Borough Council,http://statistics.data.gov.uk/id/local-authority/32UB,Information Technology,Computer Software Licence Costs,23/01/2024,30009905,"1,355.67 ",Public Sector Partnership Services LTD
Boston Borough Council,http://statistics.data.gov.uk/id/local-authority/32UB,Information Technology,Materials and Consumables,23/01/2024,30009906,355.70 ,Public Sector Partnership Services LTD
Boston Borough Council,http://statistics.data.gov.uk/id/local-authority/32UB,Information Technology,Purchase of Hardware,23/01/2024,30009907,"5,733.18 ",Public Sector Partnership Services LTD
Boston Borough Council,http://statistics.data.gov.uk/id/local-authority/32UB,Information Technology,Purchase of Hardware,23/01/2024,30009961,"6,158.40 ",Public Sector Partnership Services LTD
Boston Borough Council,http://statistics.data.gov.uk/id/local-authority/32UB,Operations,Furniture and Equipment,23/01/2024,30009762,281.67 ,Portable offices (Hire) LTD
Boston Borough Council,http://statistics.data.gov.uk/id/local-authority/32UB,Operations,Materials and Consumables,23/01/2024,30009741,475.00 ,MCP Environmental LLP
Boston Borough Council,http://statistics.data.gov.uk/id/local-authority/32UB,Property Services,Buildings Maintenance - Programmed,23/01/2024,30009569,"6,571.20 ",Power Portal Limited
Boston Borough Council,http://statistics.data.gov.uk/id/local-authority/32UB,Property Services,Fees and Charges General,23/01/2024,30010037,"1,450.20 ",Savoy Cinemas LTD
Boston Borough Council,http://statistics.data.gov.uk/id/local-authority/32UB,Property Services,Other Private Contractors,23/01/2024,30009891,"1,107.62 ",Kings Armoured Security Services LTD
Boston Borough Council,http://statistics.data.gov.uk/id/local-authority/32UB,Property Services,Professional and Contractors Fees,23/01/2024,30009663,"1,155.68 ",IPS (UK) Ltd
Boston Borough Council,http://statistics.data.gov.uk/id/local-authority/32UB,Property Services,Professional and Contractors Fees,23/01/2024,30009704,375.92 ,Chipside LTD
Boston Borough Council,http://statistics.data.gov.uk/id/local-authority/32UB,Property Services,Professional and Contractors Fees,23/01/2024,30009826,495.00 ,Freeths LLP
Boston Borough Council,http://statistics.data.gov.uk/id/local-authority/32UB,Strategic Economic Development Projects,Professional and Contractors Fees,23/01/2024,30009959,"1,305.00 ",Park Avenue Recruitment
Boston Borough Council,http://statistics.data.gov.uk/id/local-authority/32UB,Bereavement,Internet Broadband Payments,25/01/2024,30009630,52.43 ,Multidata LTD
Boston Borough Council,http://statistics.data.gov.uk/id/local-authority/32UB,Business Transformation,Postages,25/01/2024,30009685,408.77 ,Royal Mail
Boston Borough Council,http://statistics.data.gov.uk/id/local-authority/32UB,Communities,Agency Staff,25/01/2024,30009871,"1,790.70 ",Vivid Resourcing
Boston Borough Council,http://statistics.data.gov.uk/id/local-authority/32UB,Communities,Agency Staff,25/01/2024,30009872,"1,485.90 ",Vivid Resourcing
Boston Borough Council,http://statistics.data.gov.uk/id/local-authority/32UB,Communities,Agency Staff,25/01/2024,30009873,"1,651.00 ",Vivid Resourcing
Boston Borough Council,http://statistics.data.gov.uk/id/local-authority/32UB,Communities,Bed and Breakfast Accommodation (Homelessness Service),25/01/2024,30010015,343.00 ,Dellhaven Homes Limited
Boston Borough Council,http://statistics.data.gov.uk/id/local-authority/32UB,Communities,Bed and Breakfast Accommodation (Homelessness Service),25/01/2024,30010017,315.00 ,Dellhaven Homes Limited
Boston Borough Council,http://statistics.data.gov.uk/id/local-authority/32UB,Communities,Bed and Breakfast Accommodation (Homelessness Service),25/01/2024,30010101,315.00 ,Smart Move (Boston) LTD
Boston Borough Council,http://statistics.data.gov.uk/id/local-authority/32UB,Communities,Grants and Contributions to Outside Bodies - No Service Received,25/01/2024,30010080,"6,393.95 ",Willanna LTD T/A Andrew Wrisdale Building Contractors
Boston Borough Council,http://statistics.data.gov.uk/id/local-authority/32UB,Communities,Other Miscellaneous Expenses,25/01/2024,30010110,336.26 ,Boston Borough Council
Boston Borough Council,http://statistics.data.gov.uk/id/local-authority/32UB,Communities,Other Private Contractors,25/01/2024,30010098,474.00 ,Trevor A Blackamore Ltd
Boston Borough Council,http://statistics.data.gov.uk/id/local-authority/32UB,Communities,Staff Training Expenses (Non-Payroll),25/01/2024,30009967,250.00 ,Aurora Training And Security Solutions
Boston Borough Council,http://statistics.data.gov.uk/id/local-authority/32UB,Environmental Health,Grants and Contributions to Outside Bodies - No Service Received,25/01/2024,30010114,"1,317.51 ",F E Addlesee and Son LTD
Boston Borough Council,http://statistics.data.gov.uk/id/local-authority/32UB,Heritage,Internet Broadband Payments,25/01/2024,30009630,60.50 ,Multidata LTD
Boston Borough Council,http://statistics.data.gov.uk/id/local-authority/32UB,Leisure,Internet Broadband Payments,25/01/2024,30009630,368.00 ,Multidata LTD
Boston Borough Council,http://statistics.data.gov.uk/id/local-authority/32UB,Operations,Agency Staff,25/01/2024,30009984,"4,649.62 ",Comensura LTD
Boston Borough Council,http://statistics.data.gov.uk/id/local-authority/32UB,Operations,Internet Broadband Payments,25/01/2024,30009630,51.76 ,Multidata LTD
Boston Borough Council,http://statistics.data.gov.uk/id/local-authority/32UB,Operations,Maintenance,25/01/2024,30009182,724.75 ,Specialist Fleet Services LTD
Boston Borough Council,http://statistics.data.gov.uk/id/local-authority/32UB,Operations,Maintenance,25/01/2024,30009303,326.62 ,Specialist Fleet Services LTD
Boston Borough Council,http://statistics.data.gov.uk/id/local-authority/32UB,Operations,Maintenance,25/01/2024,30009927,250.00 ,Chris Sellars Groundcare LTD
Boston Borough Council,http://statistics.data.gov.uk/id/local-authority/32UB,Operations,Materials and Consumables,25/01/2024,30009903,375.00 ,The Boston Sign Company
Boston Borough Council,http://statistics.data.gov.uk/id/local-authority/32UB,Operations,Other Private Contractors,25/01/2024,30009557,575.00 ,Healthguard LTD
Boston Borough Council,http://statistics.data.gov.uk/id/local-authority/32UB,Operations,Other Private Contractors,25/01/2024,30010036,575.00 ,Healthguard LTD
Boston Borough Council,http://statistics.data.gov.uk/id/local-authority/32UB,Operations,Vehicle Hire,25/01/2024,30009779,680.00 ,Phil Haines Coaches LTD
Boston Borough Council,http://statistics.data.gov.uk/id/local-authority/32UB,Operations,Vehicle Hire,25/01/2024,30009780,680.00 ,Phil Haines Coaches LTD
Boston Borough Council,http://statistics.data.gov.uk/id/local-authority/32UB,Operations,Vehicle Hire,25/01/2024,30009781,400.00 ,Phil Haines Coaches LTD
Boston Borough Council,http://statistics.data.gov.uk/id/local-authority/32UB,Operations,Vehicle Hire,25/01/2024,30009782,960.00 ,Phil Haines Coaches LTD
Boston Borough Council,http://statistics.data.gov.uk/id/local-authority/32UB,Property Services,Agency Staff,25/01/2024,30009761,"6,803.98 ",Chase Services Group
Boston Borough Council,http://statistics.data.gov.uk/id/local-authority/32UB,Property Services,Buildings Maintenance - Programmed,25/01/2024,30009852,593.40 ,Periam and Williamson Ltd
Boston Borough Council,http://statistics.data.gov.uk/id/local-authority/32UB,Property Services,Buildings Maintenance - Programmed,25/01/2024,30009853,824.99 ,Periam and Williamson Ltd
Boston Borough Council,http://statistics.data.gov.uk/id/local-authority/32UB,Property Services,Water and Sewerage Charges,25/01/2024,30010248,"10,689.58 ",Wave
Boston Borough Council,http://statistics.data.gov.uk/id/local-authority/32UB,Strategic Economic Development Projects,Professional and Contractors Fees,25/01/2024,30009005,"12,260.32 ",YMD Boon LTD
Boston Borough Council,http://statistics.data.gov.uk/id/local-authority/32UB,Strategic Economic Development Projects,Professional and Contractors Fees,25/01/2024,30010113,"2,610.00 ",Park Avenue Recruitment
Boston Borough Council,http://statistics.data.gov.uk/id/local-authority/32UB,Townscape Heritage,Other Miscellaneous Expenses,25/01/2024,30010109,"4,554.16 ",Heritage Trust of Lincolnshire LTD
Boston Borough Council,http://statistics.data.gov.uk/id/local-authority/32UB,Council Tax & Benefits,Business Rates - Share of Income Central Government,26/01/2024,30010244,"3,033,129.63 ",Lincolnshire County Council
Boston Borough Council,http://statistics.data.gov.uk/id/local-authority/32UB,Council Tax & Benefits,Business Rates - Share of Income Lincolnshire County Council,26/01/2024,30010244,"172,980.10 ",Lincolnshire County Council
Boston Borough Council,http://statistics.data.gov.uk/id/local-authority/32UB,Council Tax & Benefits,Council Tax Precept - Lincolnshire Police,26/01/2024,30010243,"587,502.48 ",Police and Crime Commissioner For Lincolnshire
Boston Borough Council,http://statistics.data.gov.uk/id/local-authority/32UB,Finance,Banking Charges,26/01/2024,30010247,"3,856.58 ",Pay360 LTD
Boston Borough Council,http://statistics.data.gov.uk/id/local-authority/32UB,Finance,Business Rates - Share of Income Central Government,26/01/2024,30010244,"3,033,129.63 ",Lincolnshire County Council
Boston Borough Council,http://statistics.data.gov.uk/id/local-authority/32UB,Finance,Business Rates - Share of Income Lincolnshire County Council,26/01/2024,30010244,"172,980.10 ",Lincolnshire County Council
Boston Borough Council,http://statistics.data.gov.uk/id/local-authority/32UB,Finance,Council Tax Precept - Lincolnshire Police,26/01/2024,30010243,"587,502.48 ",Police and Crime Commissioner For Lincolnshire
Boston Borough Council,http://statistics.data.gov.uk/id/local-authority/32UB,BTAC,Other Miscellaneous Expenses,30/01/2024,30009772,"4,750.00 ",Lighting & Illumination Technology Experience Ltd
Boston Borough Council,http://statistics.data.gov.uk/id/local-authority/32UB,Communities,Bed and Breakfast Accommodation (Homelessness Service),30/01/2024,30010070,350.00 ,AA Properties Boston LTD T/A Tunnard House
Boston Borough Council,http://statistics.data.gov.uk/id/local-authority/32UB,Communities,Bed and Breakfast Accommodation (Homelessness Service),30/01/2024,30010071,350.00 ,AA Properties Boston LTD T/A Tunnard House
Boston Borough Council,http://statistics.data.gov.uk/id/local-authority/32UB,Communities,Bed and Breakfast Accommodation (Homelessness Service),30/01/2024,30010072,350.00 ,AA Properties Boston LTD T/A Tunnard House
Boston Borough Council,http://statistics.data.gov.uk/id/local-authority/32UB,Communities,Bed and Breakfast Accommodation (Homelessness Service),30/01/2024,30010115,770.00 ,The Lord Grey Hotel t/a The Lord Grey Ltd
Boston Borough Council,http://statistics.data.gov.uk/id/local-authority/32UB,Communities,Bed and Breakfast Accommodation (Homelessness Service),30/01/2024,30010116,840.00 ,The Lord Grey Hotel t/a The Lord Grey Ltd
Boston Borough Council,http://statistics.data.gov.uk/id/local-authority/32UB,Communities,Bed and Breakfast Accommodation (Homelessness Service),30/01/2024,30010196,770.00 ,The Lord Grey Hotel t/a The Lord Grey Ltd
Boston Borough Council,http://statistics.data.gov.uk/id/local-authority/32UB,Communities,Bed and Breakfast Accommodation (Homelessness Service),30/01/2024,30010197,385.00 ,The Lord Grey Hotel t/a The Lord Grey Ltd
Boston Borough Council,http://statistics.data.gov.uk/id/local-authority/32UB,Communities,Grants and Contributions to Outside Bodies - No Service Received,30/01/2024,30010144,"5,000.00 ",Centenary Methodist Church
Boston Borough Council,http://statistics.data.gov.uk/id/local-authority/32UB,Communities,Other Miscellaneous Expenses,30/01/2024,30010188,"1,150.00 ",AGS Support
Boston Borough Council,http://statistics.data.gov.uk/id/local-authority/32UB,Communities,Other Private Contractors,30/01/2024,30010047,460.00 ,SG Services (Boston) LTD
Boston Borough Council,http://statistics.data.gov.uk/id/local-authority/32UB,Communities,Other Private Contractors,30/01/2024,30010133,400.00 ,Jayna Dance Academy
Boston Borough Council,http://statistics.data.gov.uk/id/local-authority/32UB,Communities,Rent Payments,30/01/2024,30010143,770.00 ,The Lord Grey Hotel t/a The Lord Grey Ltd
Boston Borough Council,http://statistics.data.gov.uk/id/local-authority/32UB,Communities,Rent Payments,30/01/2024,30010145,385.00 ,The Lord Grey Hotel t/a The Lord Grey Ltd
Boston Borough Council,http://statistics.data.gov.uk/id/local-authority/32UB,Communities,Rent Payments,30/01/2024,30010186,430.00 ,The Lord Grey Hotel t/a The Lord Grey Ltd
Boston Borough Council,http://statistics.data.gov.uk/id/local-authority/32UB,Communities,Rent Payments,30/01/2024,30010194,935.00 ,The Lord Grey Hotel t/a The Lord Grey Ltd
Boston Borough Council,http://statistics.data.gov.uk/id/local-authority/32UB,Communities,Rent Payments,30/01/2024,30010195,605.00 ,The Lord Grey Hotel t/a The Lord Grey Ltd
Boston Borough Council,http://statistics.data.gov.uk/id/local-authority/32UB,"Democratic, Civic & Electoral Services",External Printing and Design Costs,30/01/2024,30009804,"3,862.08 ",Civica Election Services LTD
Boston Borough Council,http://statistics.data.gov.uk/id/local-authority/32UB,Environmental Health,Staff Training Expenses (Non-Payroll),30/01/2024,30009680,225.00 ,ABC Food Law LTD
Boston Borough Council,http://statistics.data.gov.uk/id/local-authority/32UB,Environmental Health,Staff Training Expenses (Non-Payroll),30/01/2024,30009815,225.00 ,ABC Food Law LTD
Boston Borough Council,http://statistics.data.gov.uk/id/local-authority/32UB,Human Resources,Other Employee Expenses (Non-Payroll),30/01/2024,30010087,"1,608.00 ",Public Sector Partnership Services LTD
Boston Borough Council,http://statistics.data.gov.uk/id/local-authority/32UB,Information Technology,Materials and Consumables,30/01/2024,30009683,381.93 ,Seton LTD
Boston Borough Council,http://statistics.data.gov.uk/id/local-authority/32UB,Operations,Clothing Uniforms And Laundry,30/01/2024,30009783,762.18 ,SMI Group
Boston Borough Council,http://statistics.data.gov.uk/id/local-authority/32UB,Operations,Clothing Uniforms And Laundry,30/01/2024,30009808,444.00 ,SMI Group
Boston Borough Council,http://statistics.data.gov.uk/id/local-authority/32UB,Operations,Other Private Contractors,30/01/2024,30009742,"1,840.00 ",East Coast Access
Boston Borough Council,http://statistics.data.gov.uk/id/local-authority/32UB,Operations,Other Private Contractors,30/01/2024,30010086,220.00 ,SG Services (Boston) LTD
Boston Borough Council,http://statistics.data.gov.uk/id/local-authority/32UB,Property Services,Agency Staff,30/01/2024,30009766,801.67 ,Chase Services Group
Boston Borough Council,http://statistics.data.gov.uk/id/local-authority/32UB,Property Services,Buildings Maintenance - Programmed,30/01/2024,30009887,"3,750.00 ",Eon UK Energy Services
Boston Borough Council,http://statistics.data.gov.uk/id/local-authority/32UB,Property Services,Buildings Maintenance - Programmed,30/01/2024,30009888,800.00 ,Eon UK Energy Services
Boston Borough Council,http://statistics.data.gov.uk/id/local-authority/32UB,Property Services,Buildings Maintenance - Programmed,30/01/2024,30010082,"2,107.78 ",Clean and Retrieve Ltd
Boston Borough Council,http://statistics.data.gov.uk/id/local-authority/32UB,Strategic Economic Development Projects,Other Miscellaneous Expenses,30/01/2024,30010198,480.00 ,Central Bank St Botolphs Church
Boston Borough Council,http://statistics.data.gov.uk/id/local-authority/32UB,Strategic Economic Development Projects,Other Miscellaneous Expenses,30/01/2024,30010199,465.00 ,Central Bank St Botolphs Church
Boston Borough Council,http://statistics.data.gov.uk/id/local-authority/32UB,Strategic Economic Development Projects,Professional and Contractors Fees,30/01/2024,30010117,"2,610.00 ",Park Avenue Recruitment
Boston Borough Council,http://statistics.data.gov.uk/id/local-authority/32UB,Strategic Growth & Development,Grants and Contributions to Outside Bodies - No Service Received,30/01/2024,30009942,"12,509.63 ",NBV Enterprise Solutions Limited
Boston Borough Council,http://statistics.data.gov.uk/id/local-authority/32UB,Leisure,Cleaning Contract,31/01/2024,30010239,668.52 ,Phs Group PLC
